bitfinex/quotes_BTCUSD_20250910
["timestamp","ask_amount","ask_price","bid_price","bid_amount"]
[1757529266034,0.00024094,113500.0,113490.0,1.11563911]
[1757529266950,0.00024094,113500.0,113490.0,1.18327911]
[1757529267652,0.00024094,113500.0,113490.0,1.18427911]
[1757529267872,0.00024094,113500.0,113490.0,1.18527911]
[1757529268321,0.00024094,113500.0,113490.0,1.18427911]
[1757529268875,0.00024094,113500.0,113490.0,1.18327911]
[1757529269107,0.00024094,113500.0,113490.0,1.18427911]
[1757529269304,0.00024094,113500.0,113490.0,1.12099314]
[1757529269710,0.00024094,113500.0,113490.0,1.12199314]
[1757529270418,0.00024094,113500.0,113490.0,1.2011015]
[1757529271417,0.00024094,113500.0,113490.0,1.6011015]
[1757529272790,0.0003,113510.0,113500.0,0.91621145]
[1757529272937,0.0003,113510.0,113500.0,1.03154263]
[1757529273154,0.0002,113510.0,113500.0,1.45869921]
[1757529273360,0.0002,113510.0,113500.0,1.56897672]
[1757529273568,0.0002,113510.0,113500.0,1.57250099]
[1757529274268,0.0001,113540.0,113500.0,1.66202451]
[1757529274528,0.00024086,113540.0,113530.0,0.72616489]
[1757529274754,0.00024086,113540.0,113530.0,1.12329959]
[1757529274979,0.00024086,113540.0,113530.0,1.15312959]
[1757529275229,0.00014086,113540.0,113530.0,1.28601418]
[1757529275680,0.00014086,113540.0,113530.0,1.62282053]
[1757529276099,0.00014086,113540.0,113530.0,1.70189134]
[1757529276310,0.00014086,113540.0,113530.0,1.68596451]
[1757529276559,0.00014086,113540.0,113530.0,1.68600451]
[1757529277202,0.00114086,113540.0,113530.0,1.68636451]
[1757529277416,0.00114086,113540.0,113530.0,1.53206109]
[1757529277626,0.00314086,113540.0,113530.0,1.22060711]
[1757529278053,0.00314086,113540.0,113530.0,1.22371711]
[1757529278500,0.00314086,113540.0,113530.0,1.22361711]
[1757529279340,0.00314086,113540.0,113530.0,1.06881711]
[1757529279562,0.00314086,113540.0,113530.0,1.22060711]
[1757529279769,0.00314086,113540.0,113530.0,1.22371711]
[1757529280468,0.00314086,113540.0,113530.0,1.24840711]
[1757529284036,0.00314086,113540.0,113530.0,0.94360711]
[1757529284257,0.00314086,113540.0,113530.0,1.07395711]
[1757529286421,0.00314086,113540.0,113530.0,1.09864711]
[1757529288201,0.00314086,113540.0,113530.0,1.24864711]
[1757529288795,0.00314086,113540.0,113530.0,1.64864711]
[1757529293441,0.00314086,113540.0,113530.0,1.71179109]
[1757529293685,0.0003,113550.0,113540.0,0.20127595]
[1757529293888,0.0003,113550.0,113540.0,0.5197816]
[1757529294094,0.0003,113550.0,113540.0,0.5489416]
[1757529294323,0.0003,113550.0,113540.0,0.61208558]
[1757529294554,0.0003,113550.0,113540.0,0.61560901]
[1757529295997,0.0003,113550.0,113540.0,1.01560901]
[1757529296477,0.0003,113550.0,113540.0,0.85844901]
[1757529296719,0.0003,113550.0,113540.0,1.01540901]
[1757529296957,0.0003,113550.0,113540.0,1.01550901]
[1757529297455,0.0003,113550.0,113540.0,0.61550901]
[1757529297962,0.0003,113550.0,113540.0,0.45854901]
[1757529298210,0.0003,113550.0,113540.0,0.59134901]
[1757529298458,0.0003,113550.0,113540.0,0.61546901]
[1757529298878,0.0003,113550.0,113540.0,0.55232503]
[1757529299629,0.0003,113550.0,113540.0,0.52832503]
[1757529300370,0.0003,113550.0,113540.0,0.57128503]
[1757529300589,0.0003,113550.0,113540.0,0.72528503]
[1757529300837,0.0003,113550.0,113540.0,0.72824503]
[1757529301277,0.0003,113550.0,113540.0,0.79142423]
[1757529303708,0.0003,113550.0,113540.0,0.81554423]
[1757529304329,0.0003,113550.0,113540.0,0.75236503]
[1757529304940,0.0003,113550.0,113540.0,1.09236503]
[1757529305127,0.0003,113550.0,113540.0,1.57133903]
[1757529309051,0.0003,113550.0,113540.0,1.59703883]
[1757529309207,0.0003,113550.0,113540.0,1.57133903]
[1757529309408,0.0003,113550.0,113540.0,1.57077903]
[1757529309730,0.0003,113550.0,113540.0,1.41437903]
[1757529310286,0.0003,113550.0,113540.0,1.59037903]
[1757529310507,0.0003,113550.0,113540.0,1.59329903]
[1757529310748,0.0003,113550.0,113540.0,1.59129903]
[1757529310963,0.0003,113550.0,113540.0,1.59329903]
[1757529311383,0.0003,113550.0,113540.0,1.43701903]
[1757529311612,0.0003,113550.0,113540.0,1.59329903]
[1757529312994,0.0003,113550.0,113540.0,1.43701903]
[1757529313212,0.0003,113550.0,113540.0,1.59325903]
[1757529319477,0.0003,113550.0,113540.0,1.21937903]
[1757529319745,0.0003,113550.0,113540.0,1.38899414]
[1757529319990,0.0003,113550.0,113540.0,1.33514672]
[1757529320466,0.0003,113550.0,113540.0,1.33314672]
[1757529320687,0.0003,113550.0,113540.0,1.17854672]
[1757529320905,0.0003,113550.0,113540.0,1.33414672]
[1757529322233,0.0003,113550.0,113540.0,1.33114672]
[1757529322718,0.0003,113550.0,113540.0,1.33314672]
[1757529322942,0.0003,113550.0,113540.0,1.11132503]
[1757529323159,0.0003,113550.0,113540.0,0.90488679]
[1757529323376,0.00233,113550.0,113540.0,0.81736327]
[1757529323595,0.00553,113550.0,113540.0,0.81736327]
[1757529323820,0.00553,113550.0,113540.0,0.75407493]
[1757529324296,0.00553,113550.0,113540.0,0.75199493]
[1757529324723,0.00553,113550.0,113540.0,0.74999493]
[1757529325170,0.00553,113550.0,113540.0,0.74899493]
[1757529325390,0.00553,113550.0,113540.0,0.75102493]
[1757529333012,0.18166386,113550.0,113540.0,0.59359493]
[1757529333230,0.18166386,113550.0,113540.0,0.07744556]
[1757529333231,0.40310737,113550.0,113540.0,0.07744556]
[1757529333434,0.20554386,113550.0,113540.0,0.25359493]
[1757529333868,0.20554386,113550.0,113540.0,0.00352343]
[1757529334111,0.4884708,113550.0,113540.0,0.00352343]
[1757529334580,0.17614937,113540.0,113530.0,1e-08]
[1757529334821,1.32773972,113540.0,113530.0,1e-08]
[1757529335049,1.32761963,113540.0,113530.0,1e-08]
[1757529335268,1.39318311,113540.0,113530.0,1e-08]
[1757529335740,1.39618311,113540.0,113530.0,1e-08]
[1757529335946,1.59158653,113540.0,113530.0,1e-08]
[1757529336168,1.59658653,113540.0,113530.0,1e-08]
[1757529336380,1.59358653,113540.0,113530.0,1e-08]
[1757529336596,1.59354653,113540.0,113530.0,1e-08]
[1757529336812,0.17619592,113510.0,113500.0,0.0001]
[1757529337021,0.68428295,113510.0,113500.0,0.00024086]
[1757529337247,0.25204,113510.0,113500.0,0.17865495]
[1757529337469,0.17823592,113510.0,113500.0,0.18068495]
[1757529337764,0.17823592,113510.0,113500.0,0.22461447]
[1757529337984,0.17833592,113510.0,113500.0,0.17848231]
[1757529338197,0.33689592,113510.0,113500.0,0.18068495]
[1757529338589,0.00826,113510.0,113500.0,0.18068495]
[1757529338789,0.18133592,113510.0,113500.0,0.18068495]
[1757529339976,0.18445592,113510.0,113500.0,0.17865495]
[1757529340217,0.18439738,113510.0,113500.0,0.17865495]
[1757529340427,0.16032146,113510.0,113500.0,0.21736022]
[1757529340640,0.16032146,113510.0,113500.0,0.21515758]
[1757529341062,0.33651738,113510.0,113500.0,0.21515758]
[1757529341278,0.16032146,113510.0,113500.0,0.21821758]
[1757529343050,0.00508146,113510.0,113500.0,0.21821758]
[1757529343308,0.33639738,113510.0,113500.0,0.21821758]
[1757529343525,0.33639738,113510.0,113500.0,0.21515758]
[1757529344583,0.33635738,113510.0,113500.0,0.17848231]
[1757529344793,0.33635738,113510.0,113500.0,0.18068495]
[1757529345223,0.5587208,113510.0,113500.0,0.00024086]
[1757529345464,0.36331738,113510.0,113500.0,0.00024086]
[1757529345673,0.5587208,113510.0,113500.0,0.00024086]
[1757529351502,0.4036808,113510.0,113500.0,0.00024086]
[1757529351707,0.5584008,113510.0,113500.0,0.00024086]
[1757529351917,0.36299738,113510.0,113500.0,0.00024086]
[1757529352120,0.5582808,113510.0,113500.0,0.00024086]
[1757529353465,0.64580432,113510.0,113500.0,0.00024086]
[1757529353626,0.6621286,113510.0,113500.0,0.00024086]
[1757529353857,0.5075286,113510.0,113500.0,0.00024086]
[1757529354066,0.6620486,113510.0,113500.0,0.00024086]
[1757529354978,0.5075286,113510.0,113500.0,0.00024086]
[1757529355196,0.6620486,113510.0,113500.0,0.00024086]
[1757529358352,0.5075286,113510.0,113500.0,0.00024086]
[1757529358530,0.6618086,113510.0,113500.0,0.00024086]
[1757529359771,0.6617286,113510.0,113500.0,0.00024086]
[1757529359941,0.6616486,113510.0,113500.0,0.00024086]
[1757529360761,0.5075286,113510.0,113500.0,0.00024086]
[1757529360970,0.31212518,113510.0,113500.0,0.00024086]
[1757529361176,0.46616518,113510.0,113500.0,0.00024086]
[1757529361379,0.6615686,113510.0,113500.0,0.00024086]
[1757529361844,0.5075286,113510.0,113500.0,0.00024086]
[1757529362024,0.6615286,113510.0,113500.0,0.00024086]
[1757529362242,0.6614886,113510.0,113500.0,0.00024086]
[1757529362445,0.66968084,113510.0,113500.0,0.00024086]
[1757529362660,0.47427742,113510.0,113500.0,0.00024086]
[1757529362882,0.66968084,113510.0,113500.0,0.00024086]
[1757529363098,0.51572084,113510.0,113500.0,0.00024086]
[1757529363300,0.67583219,113510.0,113500.0,0.00024086]
[1757529363507,0.74347219,113510.0,113500.0,0.00024086]
[1757529364122,0.74339219,113510.0,113500.0,0.00024086]
[1757529364974,0.74335219,113510.0,113500.0,0.00024086]
[1757529366845,0.54794877,113510.0,113500.0,0.00024086]
[1757529367056,0.74327219,113510.0,113500.0,0.00024086]
[1757529368132,0.54786877,113510.0,113500.0,0.00024086]
[1757529368368,0.46026525,113510.0,113500.0,0.00024086]
[1757529368754,0.30658525,113510.0,113500.0,0.00024086]
[1757529369088,0.46026525,113510.0,113500.0,0.00024086]
[1757529369289,0.65566867,113510.0,113500.0,0.00024086]
[1757529369930,0.50198867,113510.0,113500.0,0.00024086]
[1757529370233,0.46026525,113510.0,113500.0,0.00024086]
[1757529370622,0.46014525,113510.0,113500.0,0.00024086]
[1757529372178,0.43314525,113510.0,113500.0,0.00024086]
[1757529372635,0.43608525,113510.0,113500.0,0.00024086]
[1757529373574,0.45904525,113510.0,113500.0,0.00024086]
[1757529374720,0.43588525,113510.0,113500.0,0.00024086]
[1757529375626,0.45884525,113510.0,113500.0,0.00024086]
[1757529377508,0.4526939,113510.0,113500.0,0.00024086]
[1757529378163,0.4526939,113510.0,113500.0,0.18384495]
[1757529378164,0.25059798,113510.0,113500.0,0.18384495]
[1757529378411,0.08706428,113510.0,113500.0,0.21764938]
[1757529378657,0.24052638,113510.0,113500.0,0.21764938]
[1757529379147,0.01952638,113510.0,113500.0,0.24408805]
[1757529379382,0.01952638,113510.0,113500.0,0.21764938]
[1757529379383,0.17288638,113510.0,113500.0,0.21764938]
[1757529380435,0.15646,113510.0,113500.0,0.21764938]
[1757529380803,0.15646,113510.0,113500.0,0.28366259]
[1757529382083,0.0031,113510.0,113500.0,0.28366259]
[1757529382518,0.15646,113510.0,113500.0,0.28366259]
[1757529385073,0.0031,113510.0,113500.0,0.28366259]
[1757529385462,0.15646,113510.0,113500.0,0.28366259]
[1757529388455,0.15546,113510.0,113500.0,0.28366259]
[1757529388640,0.0021,113510.0,113500.0,0.86118611]
[1757529388923,0.0021,113510.0,113500.0,1.06230269]
[1757529389117,0.0021,113510.0,113500.0,1.1253758]
[1757529389325,0.0001,113510.0,113500.0,1.1253758]
[1757529389531,0.0011,113510.0,113500.0,1.1253758]
[1757529389744,0.0011,113510.0,113500.0,0.9720558]
[1757529389944,0.0001,113510.0,113500.0,1.1253758]
[1757529390377,0.0001,113510.0,113500.0,0.9720558]
[1757529390567,0.0001,113510.0,113500.0,1.1027058]
[1757529390787,0.0001,113510.0,113500.0,0.9493858]
[1757529390993,0.0001,113510.0,113500.0,0.73631269]
[1757529391136,0.0022,113510.0,113500.0,0.77425922]
[1757529391350,0.18146592,113510.0,113500.0,0.50846425]
[1757529391556,0.20444592,113510.0,113500.0,0.17745231]
[1757529391750,0.20444592,113510.0,113500.0,0.00124086]
[1757529391978,0.20444592,113510.0,113500.0,0.00024086]
[1757529392177,0.20444592,113510.0,113500.0,0.00124086]
[1757529392396,0.20444592,113510.0,113500.0,0.00024086]
[1757529392949,0.20544592,113510.0,113500.0,0.00024086]
[1757529393577,0.20237592,113510.0,113500.0,0.00024086]
[1757529393791,0.33271592,113510.0,113500.0,0.00024086]
[1757529394018,0.33271592,113510.0,113500.0,0.00223086]
[1757529394231,0.33271592,113510.0,113500.0,0.00024086]
[1757529394232,0.33578592,113510.0,113500.0,0.00024086]
[1757529394440,0.33578592,113510.0,113500.0,0.17645231]
[1757529394653,0.35876592,113510.0,113500.0,0.00024086]
[1757529394894,0.48913183,113510.0,113500.0,0.00024086]
[1757529395097,0.35876592,113510.0,113500.0,0.00024086]
[1757529395920,0.20544592,113510.0,113500.0,0.00024086]
[1757529396129,0.35876592,113510.0,113500.0,0.00024086]
[1757529398995,0.17939592,113510.0,113500.0,0.17645231]
[1757529399211,0.33790601,113510.0,113500.0,0.00024086]
[1757529399444,0.35872592,113510.0,113500.0,0.00024086]
[1757529401099,0.20544592,113510.0,113500.0,0.00024086]
[1757529401306,0.35872592,113510.0,113500.0,0.00024086]
[1757529403403,0.20544592,113510.0,113500.0,0.00024086]
[1757529403765,0.35872592,113510.0,113500.0,0.00024086]
[1757529404070,0.57661535,113510.0,113500.0,0.00024086]
[1757529405048,0.57561535,113510.0,113500.0,0.00024086]
[1757529405414,0.57761535,113510.0,113500.0,0.00024086]
[1757529405825,0.57961535,113510.0,113500.0,0.00024086]
[1757529406272,0.42633535,113510.0,113500.0,0.00024086]
[1757529406477,0.57961535,113510.0,113500.0,0.00024086]
[1757529407664,0.70998126,113510.0,113500.0,0.00024086]
[1757529407907,0.55670126,113510.0,113500.0,0.00024086]
[1757529408090,0.42633535,113510.0,113500.0,0.00024086]
[1757529408508,0.57961535,113510.0,113500.0,0.00024086]
[1757529409446,0.70998126,113510.0,113500.0,0.00024086]
[1757529409906,0.55670126,113510.0,113500.0,0.00024086]
[1757529410124,0.57961535,113510.0,113500.0,0.00024086]
[1757529414030,0.70998126,113510.0,113500.0,0.00024086]
[1757529414250,0.57961535,113510.0,113500.0,0.00024086]
[1757529414856,0.42633535,113510.0,113500.0,0.00024086]
[1757529415018,0.57957535,113510.0,113500.0,0.00024086]
[1757529416775,0.69957535,113510.0,113500.0,0.00024086]
[1757529418762,0.54633535,113510.0,113500.0,0.00024086]
[1757529418964,0.69957535,113510.0,113500.0,0.00024086]
[1757529419583,1.16994126,113510.0,113500.0,0.00024086]
[1757529419792,1.18633009,113510.0,113500.0,0.00024086]
[1757529420407,1.03309009,113510.0,113500.0,0.00024086]
[1757529420618,1.18633009,113510.0,113500.0,0.00024086]
[1757529421419,0.77235827,113510.0,113500.0,0.00024086]
[1757529421665,1.18633009,113510.0,113500.0,0.00024086]
[1757529421895,1.03309009,113510.0,113500.0,0.00024086]
[1757529422146,0.92555827,113510.0,113500.0,0.00024086]
[1757529422374,1.05592418,113510.0,113500.0,0.00024086]
[1757529422607,0.92555827,113510.0,113500.0,0.00024086]
[1757529422804,1.05592418,113510.0,113500.0,0.00024086]
[1757529423295,0.90272418,113510.0,113500.0,0.00024086]
[1757529423516,1.05592418,113510.0,113500.0,0.00024086]
[1757529427592,0.90272418,113510.0,113500.0,0.00024086]
[1757529427810,1.05592418,113510.0,113500.0,0.00024086]
[1757529429344,0.58555827,113510.0,113500.0,0.00024086]
[1757529429551,0.41600944,113510.0,113500.0,0.00024086]
[1757529429762,0.41600944,113510.0,113500.0,0.17645231]
[1757529429972,0.54307944,113510.0,113500.0,0.21400813]
[1757529430402,0.54618944,113510.0,113500.0,0.17843231]
[1757529430615,0.54307944,113510.0,113500.0,0.17843231]
[1757529430853,0.1241,113510.0,113500.0,0.18151231]
[1757529431296,0.0041,113510.0,113500.0,0.18151231]
[1757529431529,0.0041,113510.0,113500.0,0.52151231]
[1757529431763,0.0041,113510.0,113500.0,0.60904349]
[1757529431987,0.0021,113510.0,113500.0,0.60904349]
[1757529432223,0.0001,113510.0,113500.0,0.60904349]
[1757529436787,0.0001,113510.0,113500.0,0.71946701]
[1757529437025,0.0001,113510.0,113500.0,0.87258701]
[1757529437680,0.0001,113510.0,113500.0,0.71946701]
[1757529437892,0.0001,113510.0,113500.0,0.87258701]
[1757529438958,0.0001,113510.0,113500.0,0.71946701]
[1757529439199,0.0001,113510.0,113500.0,0.87254701]
[1757529439936,0.0001,113510.0,113500.0,0.87454701]
[1757529440988,0.0001,113510.0,113500.0,0.87354701]
[1757529441192,0.0001,113510.0,113500.0,0.87454701]
[1757529441404,0.0001,113510.0,113500.0,0.96731359]
[1757529441613,0.0001,113510.0,113500.0,1.16731359]
[1757529443113,0.0001,113510.0,113500.0,1.41423359]
[1757529443258,0.0001,113510.0,113500.0,1.56731359]
[1757529444434,0.0001,113510.0,113500.0,1.41423359]
[1757529444664,0.0001,113510.0,113500.0,1.56727359]
[1757529445949,0.0001,113510.0,113500.0,1.71727359]
[1757529446370,0.0001,113510.0,113500.0,1.74370948]
[1757529446589,0.1849588,113540.0,113530.0,0.17616489]
[1757529446800,0.1849588,113540.0,113530.0,0.21645801]
[1757529447148,0.4266964,113550.0,113540.0,0.17614937]
[1757529447149,0.17643386,113550.0,113540.0,0.17614937]
[1757529447359,0.00239,113550.0,113540.0,0.18120937]
[1757529447561,0.17852386,113550.0,113540.0,0.18120937]
[1757529447756,0.00239,113550.0,113540.0,0.22047011]
[1757529447972,0.0003,113550.0,113540.0,0.22047011]
[1757529448427,0.17943386,113550.0,113540.0,0.22939627]
[1757529449126,0.0033,113550.0,113540.0,0.22939627]
[1757529449569,0.17943386,113550.0,113540.0,0.38239627]
[1757529449811,0.18159395,113550.0,113540.0,0.22939627]
[1757529450437,0.00546009,113550.0,113540.0,0.22939627]
[1757529450649,0.0003,113550.0,113540.0,0.22939627]
[1757529451078,0.17643386,113550.0,113540.0,0.22939627]
[1757529451291,0.17859395,113550.0,113540.0,0.38235627]
[1757529453041,0.00246009,113550.0,113540.0,0.38235627]
[1757529453244,0.0003,113550.0,113540.0,0.38235627]
[1757529454733,0.0003,113550.0,113540.0,0.38231627]
[1757529456519,0.0003,113550.0,113540.0,0.22939627]
[1757529456714,0.0003,113550.0,113540.0,0.38231627]
[1757529458333,0.00246009,113550.0,113540.0,0.38231627]
[1757529458508,0.17859395,113550.0,113540.0,0.38227627]
[1757529459508,0.00246009,113550.0,113540.0,0.38227627]
[1757529459950,0.0003,113550.0,113540.0,0.38227627]
[1757529460794,0.17643386,113550.0,113540.0,0.38227627]
[1757529461033,0.0003,113550.0,113540.0,0.38227627]
[1757529461436,0.00246009,113550.0,113540.0,0.38227627]
[1757529465185,0.17859395,113550.0,113540.0,0.38219627]
[1757529465387,0.00246009,113550.0,113540.0,0.38219627]
[1757529465587,0.17859395,113550.0,113540.0,0.22939627]
[1757529465832,0.00246009,113550.0,113540.0,0.38219627]
[1757529466040,0.17859395,113550.0,113540.0,0.38219627]
[1757529467030,0.17859395,113550.0,113540.0,0.22939627]
[1757529467262,0.17859395,113550.0,113540.0,0.38219627]
[1757529473397,0.19501918,113550.0,113540.0,0.38219627]
[1757529473627,0.01672523,113550.0,113540.0,0.38219627]
[1757529473837,0.0003,113550.0,113540.0,0.38219627]
[1757529474045,0.17643386,113550.0,113540.0,0.38219627]
[1757529474401,0.01673084,113550.0,113540.0,0.38219627]
[1757529474572,0.0003,113550.0,113540.0,0.38219627]
[1757529476409,0.01673084,113550.0,113540.0,0.38219627]
[1757529477222,0.00246009,113550.0,113540.0,0.38219627]
[1757529477455,0.01889093,113550.0,113540.0,0.38219627]
[1757529477784,0.01673084,113550.0,113540.0,0.38219627]
[1757529478835,0.01675787,113550.0,113540.0,0.38219627]
[1757529479399,0.0003,113550.0,113540.0,0.40657627]
[1757529480416,0.00246009,113550.0,113540.0,0.38219627]
[1757529480769,0.00246009,113550.0,113540.0,0.38207627]
[1757529481373,0.0003,113550.0,113540.0,0.38207627]
[1757529484273,0.0003,113550.0,113540.0,0.22939627]
[1757529484488,0.0003,113550.0,113540.0,0.38203627]
[1757529484707,0.0003,113550.0,113540.0,1.05906637]
[1757529484915,0.0003,113550.0,113540.0,1.12213948]
[1757529485559,0.0003,113550.0,113540.0,1.12566311]
[1757529485922,0.0003,113550.0,113540.0,1.52566311]
[1757529486144,0.0003,113550.0,113540.0,1.52662311]
[1757529486576,0.0003,113550.0,113540.0,1.52762311]
[1757529488454,0.0003,113550.0,113540.0,1.52662311]
[1757529489347,0.0003,113550.0,113540.0,1.52762311]
[1757529490781,0.0003,113550.0,113540.0,1.52758311]
[1757529493455,0.0003,113550.0,113540.0,1.12758311]
[1757529494288,0.0003,113550.0,113540.0,0.97502311]
[1757529494616,0.0003,113550.0,113540.0,1.12754311]
[1757529494843,0.0003,113550.0,113540.0,1.10241653]
[1757529495634,0.0003,113550.0,113540.0,1.10237653]
[1757529496043,0.0003,113550.0,113540.0,0.92551653]
[1757529496260,0.37937558,113550.0,113540.0,0.25367227]
[1757529496466,0.20595386,113550.0,113540.0,0.01444979]
[1757529496703,0.20595386,113550.0,113540.0,0.18707553]
[1757529497111,0.02982,113550.0,113540.0,0.18707553]
[1757529497315,0.03198009,113550.0,113540.0,0.18707553]
[1757529497522,0.03198009,113550.0,113540.0,0.25537911]
[1757529498210,0.03198009,113550.0,113540.0,0.25753911]
[1757529498438,0.03198009,113550.0,113540.0,0.25537911]
[1757529498658,0.20811395,113550.0,113540.0,0.25537911]
[1757529498882,0.02982,113550.0,113540.0,0.25537911]
[1757529499100,0.03198009,113550.0,113540.0,0.25537911]
[1757529499739,0.03198009,113550.0,113540.0,0.28181082]
[1757529500777,0.01710072,113550.0,113540.0,0.28181082]
[1757529500986,0.01822072,113550.0,113540.0,0.28483082]
[1757529501425,0.01832072,113550.0,113540.0,0.28483082]
[1757529503072,0.01832072,113550.0,113540.0,0.28181082]
[1757529505002,0.01832072,113550.0,113540.0,0.28480082]
[1757529505667,0.00338009,113550.0,113540.0,0.28480082]
[1757529505786,0.17951395,113550.0,113540.0,0.28181082]
[1757529507268,0.33363274,113550.0,113540.0,0.02843171]
[1757529507497,0.33147265,113550.0,113540.0,0.02843171]
[1757529507754,0.35352386,113550.0,113540.0,0.02843171]
[1757529508190,0.35282386,113550.0,113540.0,0.02843171]
[1757529509667,0.48383265,113550.0,113540.0,0.02843171]
[1757529510826,0.48383265,113550.0,113540.0,0.05789942]
[1757529511032,0.17614937,113540.0,113530.0,0.28624533]
[1757529511204,0.17942946,113540.0,113530.0,0.28624533]
[1757529511402,0.20253946,113540.0,113530.0,0.31267862]
[1757529511706,0.20037937,113540.0,113530.0,0.31267862]
[1757529512054,0.17893386,113550.0,113540.0,0.17614937]
[1757529512055,0.32955386,113550.0,113540.0,0.17614937]
[1757529512264,0.17623386,113550.0,113540.0,0.22752017]
[1757529512476,0.33071395,113550.0,113540.0,0.23051017]
[1757529512701,0.32855386,113550.0,113540.0,0.23051017]
[1757529512904,0.17623386,113550.0,113540.0,0.23051017]
[1757529513128,0.17939395,113550.0,113540.0,0.23051017]
[1757529513337,0.18051395,113550.0,113540.0,0.0758125]
[1757529513546,0.20362395,113550.0,113540.0,0.0264317]
[1757529513736,0.20146386,113550.0,113540.0,0.0264317]
[1757529514838,0.33347265,113550.0,113540.0,0.0264317]
[1757529515290,0.20316386,113550.0,113540.0,0.0264317]
[1757529515916,0.17614937,113540.0,113530.0,0.11008062]
[1757529516129,0.33058946,113540.0,113530.0,0.13651391]
[1757529516345,0.35265937,113540.0,113530.0,0.13651391]
[1757529516561,0.35275937,113540.0,113530.0,0.13651391]
[1757529517410,0.0001,113540.0,113530.0,0.3176588]
[1757529518042,0.0001,113540.0,113530.0,0.3415088]
[1757529518687,0.0001,113540.0,113530.0,0.6815088]
[1757529519340,0.0001,113540.0,113530.0,0.6825088]
[1757529519961,0.0001,113540.0,113530.0,0.83863232]
[1757529520554,0.0001,113540.0,113530.0,1.23763232]
[1757529520768,0.0001,113540.0,113530.0,1.23863232]
[1757529522758,0.0001,113540.0,113530.0,1.36702232]
[1757529523609,0.0001,113540.0,113530.0,0.96702232]
[1757529524014,0.0001,113540.0,113530.0,1.36702232]
[1757529524831,0.0001,113540.0,113530.0,0.96702232]
[1757529525185,0.0001,113540.0,113530.0,1.36702232]
[1757529528482,0.0001,113540.0,113530.0,1.39087232]
[1757529530710,0.0001,113540.0,113530.0,1.36702232]
[1757529530940,0.17624937,113540.0,113530.0,1.03861743]
[1757529531066,0.17624937,113540.0,113530.0,0.88349391]
[1757529531272,0.17736937,113540.0,113530.0,0.63561391]
[1757529531510,0.17736937,113540.0,113530.0,0.4717788]
[1757529532026,0.17736937,113540.0,113530.0,0.29461391]
[1757529532245,0.17736937,113540.0,113530.0,0.4707788]
[1757529532453,0.17952946,113540.0,113530.0,0.03529162]
[1757529532664,0.17952946,113540.0,113530.0,0.21643651]
[1757529532665,0.17840946,113540.0,113530.0,0.21643651]
[1757529533828,0.00226009,113540.0,113530.0,0.21643651]
[1757529534043,0.17840946,113540.0,113530.0,0.21643651]
[1757529535811,0.00226009,113540.0,113530.0,0.21643651]
[1757529535996,0.17840946,113540.0,113530.0,0.27179969]
[1757529537190,0.17952946,113540.0,113530.0,0.27179969]
[1757529537406,0.20411946,113540.0,113530.0,0.41889969]
[1757529537610,0.17624937,113540.0,113530.0,0.42400969]
[1757529537833,0.17840946,113540.0,113530.0,0.27192969]
[1757529538091,0.17952946,113540.0,113530.0,0.0957648]
[1757529538300,0.20481946,113540.0,113530.0,0.03529162]
[1757529538477,0.20265937,113540.0,113530.0,0.03529162]
[1757529538875,0.20195937,113540.0,113530.0,0.03519162]
[1757529539079,0.35399937,113540.0,113530.0,0.03519162]
[1757529539793,0.20195937,113540.0,113530.0,0.21135651]
[1757529540002,0.35599937,113540.0,113530.0,0.21135651]
[1757529540406,0.35599937,113540.0,113530.0,0.03519162]
[1757529541031,0.20395937,113540.0,113530.0,0.03519162]
[1757529541239,0.20395937,113540.0,113530.0,0.03829162]
[1757529541393,0.35599937,113540.0,113530.0,0.03829162]
[1757529541801,0.33028937,113540.0,113530.0,0.04030162]
[1757529542006,0.35599937,113540.0,113530.0,0.03519162]
[1757529542414,0.35599937,113540.0,113530.0,0.21445651]
[1757529542619,0.35599937,113540.0,113530.0,0.21646651]
[1757529542827,0.20395937,113540.0,113530.0,0.21135651]
[1757529543043,0.33140937,113540.0,113530.0,0.24052233]
[1757529543239,0.33140937,113540.0,113530.0,0.06435744]
[1757529543488,0.33140937,113540.0,113530.0,0.04030162]
[1757529543690,0.33140937,113540.0,113530.0,0.03829162]
[1757529544281,0.33140937,113540.0,113530.0,0.21135651]
[1757529544482,0.33140937,113540.0,113530.0,0.03519162]
[1757529544693,0.17936937,113540.0,113530.0,0.03519162]
[1757529544911,0.33352946,113540.0,113530.0,0.21445651]
[1757529545105,0.33136937,113540.0,113530.0,0.21445651]
[1757529545665,0.33136937,113540.0,113530.0,0.03829162]
[1757529545899,0.33136937,113540.0,113530.0,0.03519162]
[1757529546148,0.35595937,113540.0,113530.0,0.03519162]
[1757529546365,0.35595937,113540.0,113530.0,0.21135651]
[1757529546586,0.35595937,113540.0,113530.0,0.21445651]
[1757529547018,0.20395937,113540.0,113530.0,0.21445651]
[1757529547248,0.33020937,113540.0,113530.0,0.27828057]
[1757529547784,0.33132937,113540.0,113530.0,0.27828057]
[1757529548392,0.17936937,113540.0,113530.0,0.27828057]
[1757529548620,0.33020937,113540.0,113530.0,0.27828057]
[1757529549490,0.17824937,113540.0,113530.0,0.27828057]
[1757529549709,0.33236946,113540.0,113530.0,0.27828057]
[1757529549916,0.33132937,113540.0,113530.0,0.27828057]
[1757529550114,0.17824937,113540.0,113530.0,0.27828057]
[1757529550270,0.15622009,113540.0,113530.0,0.27828057]
[1757529550474,0.15618009,113540.0,113530.0,0.27828057]
[1757529550676,0.33232946,113540.0,113530.0,0.27828057]
[1757529550878,0.33016937,113540.0,113530.0,0.27828057]
[1757529553325,0.33128937,113540.0,113530.0,0.27828057]
[1757529553526,0.33016937,113540.0,113530.0,0.27828057]
[1757529554139,0.15402,113540.0,113530.0,0.27828057]
[1757529554388,0.0021,113540.0,113530.0,0.27828057]
[1757529554596,0.0021,113540.0,113530.0,0.30252057]
[1757529555638,0.0011,113540.0,113530.0,0.30252057]
[1757529555824,0.0001,113540.0,113530.0,0.30352057]
[1757529555963,0.0001,113540.0,113530.0,0.28028057]
[1757529556374,0.0001,113540.0,113530.0,0.30452057]
[1757529556575,0.0001,113540.0,113530.0,0.43216057]
[1757529556776,0.0001,113540.0,113530.0,0.43116057]
[1757529558090,0.0001,113540.0,113530.0,0.43216057]
[1757529560106,0.0001,113540.0,113530.0,0.43212057]
[1757529565028,0.0001,113540.0,113530.0,0.45510057]
[1757529565253,0.0001,113540.0,113530.0,0.45502057]
[1757529566450,0.0001,113540.0,113530.0,0.43204057]
[1757529569126,0.0001,113540.0,113530.0,0.45502057]
[1757529569373,0.0001,113540.0,113530.0,0.88254409]
[1757529570086,0.0001,113540.0,113530.0,0.88264409]
[1757529570320,0.0001,113540.0,113530.0,1.28264409]
[1757529572861,0.0001,113540.0,113530.0,1.13088409]
[1757529573282,0.0001,113540.0,113530.0,1.28256409]
[1757529575576,0.0001,113540.0,113530.0,1.30790409]
[1757529575758,0.0001,113540.0,113530.0,0.85954409]